[Event "Baden Youth-ch 2020"]
[Site "Karlsruhe-Durlach"]
[Date "2020.01.02"]
[Round "1.4"]
[White "Stefan, Michael"]
[Black "Dobrikov, Marco"]
[Result "0-1"]
[ECO "D04"]
[WhiteElo "1566"]
[BlackElo "2291"]
[Annotator "ChessBase"]
[PlyCount "68"]
[EventDate "2020.01.02"]
[EventType "swiss"]
[EventCountry "GER"]
[SourceTitle "playchess.com"]
[Source "ChessBase"]
[SourceQuality "1"]
[TimeControl "5400+30"]

1. Nf3 {[%emt 0:00:00]} c5 {[%emt 0:00:00]} 2. b3 {[%emt 0:00:42]} Nc6 {[%emt 0:00:25]} 3. Bb2 {[%emt 0:00:12]} d5 {[%emt 0:00:13]} 4. e3 {[%emt 0:00:17]} Nf6 {[%emt 0:00:53]} 5. d4 {[%emt 0:00:09]} cxd4 {[%emt 0:00:17]} 6. Nxd4 {[%emt 0:01:39]} Qd6 {[%emt 0:09:02]} 7. Nb5 {[%emt 0:05:55]} Qd8 {[%emt 0:02:42]} 8. c4 {[%emt 0:04:49]} a6 {[%emt 0:01:07]} 9. Nd4 {[%emt 0:02:43]} Bg4 {[%emt 0:07:31]} 10. f3 {[%emt 0:02:52]} Bd7 {[%emt 0:01:28]} 11. Nd2 {[%emt 0:03:46]} e6 {[%emt 0:01:02]} 12. a3 {[%emt 0:02:44]} Bd6 {[%emt 0:00:20]} 13. Bd3 {[%emt 0:01:42]} O-O {[%emt 0:00:54]} 14. O-O {[%emt 0:00:14]} Qc7 {[%emt 0:01:07]} 15. f4 {[%emt 0:03:47]} Nxd4 {[%emt 0:00:41]} 16. Bxd4 {[%emt 0:01:31]} e5 {[%emt 0:01:56]} 17. fxe5 {[%emt 0:02:08]} Bxe5 {[%emt 0:00:01]} 18. Rxf6 {[%emt 0:04:26]} Bxf6 {[%emt 0:02:42]} 19. Bxf6 {[%emt 0:00:11]} gxf6 {[%emt 0:01:18]} 20. Qh5 {[%emt 0:00:14]} Rfe8 {[%emt 0:01:21]} 21. Rf1 {[%emt 0:12:34]} Qe5 {[%emt 0:02:03]} 22. Bxh7+ {[%emt 0:06:06]} Kg7 {[%emt 0:00:49]} 23. Bf5 {[%emt 0:05:05]} Bxf5 {[%emt 0:00:29]} 24. Rxf5 {[%emt 0:02:15]} Qxe3+ {[%emt 0:00:06]} 25. Kh1 {[%emt 0:00:22]} Qxd2 {[%emt 0:00:26]} 26. Qg4+ {[%emt 0:00:47]} Kf8 {[%emt 0:00:07]} 27. h3 {[%emt 0:01:04]} Re1+ {[%emt 0:00:19]} 28. Kh2 {[%emt 0:00:01]} Qd1 {[%emt 0:00:32]} 29. Qh4 {[%emt 0:02:05]} Rh1+ {[%emt 0:00:14]} 30. Kg3 {[%emt 0:00:08]} Qe1+ {[%emt 0:00:14]} 31. Kg4 {[%emt 0:00:18]} Qxh4+ {[%emt 0:00:04]} 32. Kxh4 {[%emt 0:00:16]} dxc4 {[%emt 0:00:02]} 33. bxc4 {[%emt 0:00:10]} Ke7 {[%emt 0:00:15]} 34. Rc5 {[%emt 0:00:31]} Rd8 {[%emt 0:00:17]} 0-1

[Event "Baden Youth-ch 2020"]
[Site "Karlsruhe-Durlach"]
[Date "2020.01.02"]
[Round "1.5"]
[White "Wu, Luka"]
[Black "Divry, Alexandre"]
[Result "1-0"]
[ECO "C42"]
[WhiteElo "2057"]
[BlackElo "1539"]
[Annotator "NA"]
[PlyCount "86"]
[EventDate "2020.01.02"]
[EventType "swiss"]
[EventCountry "GER"]
[SourceTitle "playchess.com"]
[Source "ChessBase"]
[SourceQuality "1"]
[TimeControl "5400+30"]

1. e4 {[%emt 0:00:00]} e5 {[%emt 0:00:00]} 2. Nf3 {[%emt 0:00:00]} Nf6 {[%emt 0:00:00]} 3. Nxe5 {[%emt 0:00:00]} d6 {[%emt 0:00:00]} 4. Nf3 {[%emt 0:00:00]} Nxe4 {[%emt 0:00:00]} 5. d4 {[%emt 0:00:11]} d5 {[%emt 0:00:00]} 6. Bd3 {[%emt 0:00:13]} Be7 {[%emt 0:00:00]} 7. c4 {[%emt 0:02:12]} Bb4+ {[%emt 0:11:37]} 8. Nbd2 {[%emt 0:05:18]} O-O {[%emt 0:03:16]} 9. O-O {[%emt 0:00:48]} Nxd2 {[%emt 0:08:17]} 10. Bxd2 {[%emt 0:00:17]} Bxd2 {[%emt 0:00:09]} 11. Qxd2 {[%emt 0:00:24]} Nd7 {[%emt 0:02:15]} 12. cxd5 {[%emt 0:01:44]} Nf6 {[%emt 0:01:06]} 13. Qc2 {[%emt 0:03:01]} h6 {[%emt 0:01:22]} 14. Bc4 {[%emt 0:01:54]} Nxd5 {[%emt 0:06:47]} 15. Bxd5 {[%emt 0:00:32]} Qxd5 {[%emt 0:00:02]} 16. Qxc7 {[%emt 0:00:23]} Bf5 {[%emt 0:04:21]} 17. Qc5 {[%emt 0:04:49]} Rfd8 {[%emt 0:03:12]} 18. Rfe1 {[%emt 0:03:57]} Be4 {[%emt 0:03:34]} 19. Qxd5 {[%emt 0:32:10]} Bxd5 {[%emt 0:01:22]} 20. Ne5 {[%emt 0:00:53]} Rac8 {[%emt 0:03:02]} 21. h3 {[%emt 0:04:47]} Rc2 {[%emt 0:02:28]} 22. b3 {[%emt 0:00:17]} f6 {[%emt 0:01:40]} 23. Ng4 {[%emt 0:00:23]} Bc6 {[%emt 0:02:36]} 24. Red1 {[%emt 0:01:00]} Be4 {[%emt 0:03:20]} 25. Ne3 {[%emt 0:05:10]} Rc7 {[%emt 0:01:57]} 26. Rd2 {[%emt 0:00:39]} Bd5 {[%emt 0:03:55]} 27. f3 {[%emt 0:02:02]} Kf7 {[%emt 0:00:47]} 28. Kf2 {[%emt 0:00:06]} b6 {[%emt 0:01:25]} 29. Re1 {[%emt 0:01:45]} Rcd7 {[%emt 0:03:15]} 30. h4 {[%emt 0:01:00]} Be6 {[%emt 0:02:30]} 31. Red1 {[%emt 0:00:42]} Bd5 {[%emt 0:00:22]} 32. g4 {[%emt 0:05:04]} Kf8 {[%emt 0:02:55]} 33. Kg3 {[%emt 0:00:35]} Bg8 {[%emt 0:02:20]} 34. d5 {[%emt 0:04:26]} Rd6 {[%emt 0:03:05]} 35. f4 {[%emt 0:00:55]} g6 {[%emt 0:02:45]} 36. Rd4 {[%emt 0:03:51]} b5 {[%emt 0:05:39]} 37. R1d2 {[%emt 0:03:55]} Bf7 {[%emt 0:01:51]} 38. g5 {[%emt 0:03:51]} hxg5 {[%emt 0:01:05]} 39. fxg5 {[%emt 0:00:13]} fxg5 {[%emt 0:00:21]} 40. hxg5 {[%emt 0:00:05]} a5 {[%emt 0:02:14]} 41. Kf4 {[%emt 0:00:22]} Rc8 {[%emt 0:02:49]} 42. Rd1 {[%emt 0:04:23]} Ke7 {[%emt 0:04:20]} 43. R4d2 {[%emt 0:02:41]} Rh8 {[%emt 0:07:29]} 1-0

[Event "Baden Youth-ch 2020"]
[Site "Karlsruhe-Durlach"]
[Date "2020.01.02"]
[Round "1.7"]
[White "Schmider, Niklas"]
[Black "Simbikangwa, Philippe"]
[Result "1-0"]
[ECO "B08"]
[WhiteElo "2298"]
[BlackElo "1865"]
[Annotator "ChessBase"]
[PlyCount "78"]
[EventDate "2020.01.02"]
[EventType "swiss"]
[EventCountry "GER"]
[SourceTitle "playchess.com"]
[Source "ChessBase"]
[SourceQuality "1"]
[TimeControl "5400+30"]

1. e4 {[%emt 0:00:00]} g6 {[%emt 0:00:00]} 2. d4 {[%emt 0:00:00]} Bg7 {[%emt 0:00:00]} 3. Nc3 {[%emt 0:00:00]} d6 {[%emt 0:00:00]} 4. Nf3 {[%emt 0:00:33]} Nf6 {[%emt 0:01:09]} 5. Be3 {[%emt 0:00:21]} O-O {[%emt 0:00:25]} 6. Qd2 {[%emt 0:00:53]} c6 {[%emt 0:03:23]} 7. Bd3 {[%emt 0:00:27]} Qc7 {[%emt 0:01:31]} 8. h3 {[%emt 0:08:19]} Nbd7 {[%emt 0:07:20]} 9. Ne2 {[%emt 0:03:42]} e5 {[%emt 0:04:27]} 10. dxe5 {[%emt 0:03:46]} dxe5 {[%emt 0:04:42]} 11. O-O {[%emt 0:01:25]} Re8 {[%emt 0:10:54]} 12. a4 {[%emt 0:03:50]} Nf8 {[%emt 0:09:06]} 13. Ng3 {[%emt 0:14:31]} Ne6 {[%emt 0:19:14]} 14. Rfd1 {[%emt 0:02:42]} b6 {[%emt 0:13:18]} 15. a5 {[%emt 0:02:40]} b5 {[%emt 0:01:32]} 16. c4 {[%emt 0:04:20]} bxc4 {[%emt 0:12:11]} 17. Bxc4 {[%emt 0:00:11]} Bf8 {[%emt 0:00:25]} 18. Qc3 {[%emt 0:08:06]} Nd7 {[%emt 0:03:04]} 19. Rac1 {[%emt 0:06:39]} Rb8 {[%emt 0:01:11]} 20. Bf1 {[%emt 0:02:07]} c5 {[%emt 0:02:48]} 21. Ng5 {[%emt 0:05:01]} Nxg5 {[%emt 0:01:42]} 22. Bxg5 {[%emt 0:00:07]} h6 {[%emt 0:01:26]} 23. Be3 {[%emt 0:01:01]} Qb7 {[%emt 0:00:24]} 24. Rd2 {[%emt 0:04:29]} Qb4 {[%emt 0:01:06]} 25. f3 {[%emt 0:04:27]} h5 {[%emt 0:00:37]} 26. Ne2 {[%emt 0:02:34]} Qa4 {[%emt 0:00:13]} 27. Rdd1 {[%emt 0:05:54]} Ba6 {[%emt 0:00:50]} 28. Qd2 {[%emt 0:04:06]} Bxe2 {[%emt 0:00:30]} 29. Bxe2 {[%emt 0:01:17]} Nf6 {[%emt 0:00:22]} 30. Bc4 {[%emt 0:05:33]} Rb4 {[%emt 0:00:26]} 31. Ra1 {[%emt 0:00:33]} Qc6 {[%emt 0:00:22]} 32. b3 {[%emt 0:00:14]} Be7 {[%emt 0:00:34]} 33. Qf2 {[%emt 0:01:00]} Rbb8 {[%emt 0:00:28]} 34. Qg3 {[%emt 0:00:54]} Nh7 {[%emt 0:00:48]} 35. Rd5 {[%emt 0:02:11]} Bf8 {[%emt 0:00:31]} 36. Rad1 {[%emt 0:00:40]} Rb7 {[%emt 0:00:28]} 37. Rxe5 {[%emt 0:01:52]} h4 {[%emt 0:00:18]} 38. Qf4 {[%emt 0:00:47]} Rxe5 {[%emt 0:00:43]} 39. Qxe5 {[%emt 0:00:05]} Nf6 {[%emt 0:01:02]} 1-0

[Event "Baden Youth-ch 2020"]
[Site "Karlsruhe-Durlach"]
[Date "2020.01.02"]
[Round "1.8"]
[White "Schwab, Norman"]
[Black "Doll, Alexander"]
[Result "0-1"]
[ECO "C47"]
[WhiteElo "1777"]
[BlackElo "2127"]
[Annotator "ChessBase"]
[PlyCount "66"]
[EventDate "2020.01.02"]
[EventType "swiss"]
[EventCountry "GER"]
[SourceTitle "playchess.com"]
[Source "ChessBase"]
[SourceQuality "1"]
[TimeControl "5400+30"]

1. e4 {[%emt 0:00:00]} e5 {[%emt 0:00:00]} 2. Nf3 {[%emt 0:00:00]} Nc6 {[%emt 0:00:00]} 3. Nc3 {[%emt 0:00:03]} Nf6 {[%emt 0:00:00]} 4. d4 {[%emt 0:00:12]} exd4 {[%emt 0:00:00]} 5. Nxd4 {[%emt 0:00:27]} Bb4 {[%emt 0:00:00]} 6. Nxc6 {[%emt 0:00:36]} bxc6 {[%emt 0:00:00]} 7. Bd3 {[%emt 0:00:14]} d5 {[%emt 0:00:00]} 8. exd5 {[%emt 0:00:47]} O-O {[%emt 0:00:00]} 9. O-O {[%emt 0:01:02]} cxd5 {[%emt 0:00:00]} 10. h3 {[%emt 0:00:27]} c6 {[%emt 0:00:59]} 11. Qf3 {[%emt 0:02:13]} Rb8 {[%emt 0:01:49]} 12. Bf4 {[%emt 0:01:51]} Bd6 {[%emt 0:00:23]} 13. b3 {[%emt 0:04:38]} Rb7 {[%emt 0:01:59]} 14. Ba6 {[%emt 0:07:13]} Re7 {[%emt 0:03:34]} 15. Bxc8 {[%emt 0:04:15]} Bxf4 {[%emt 0:01:37]} 16. Qxf4 {[%emt 0:04:04]} Qxc8 {[%emt 0:00:02]} 17. Rfe1 {[%emt 0:00:25]} Rfe8 {[%emt 0:04:12]} 18. Qd2 {[%emt 0:05:37]} Qf5 {[%emt 0:04:21]} 19. Rxe7 {[%emt 0:05:05]} Rxe7 {[%emt 0:00:03]} 20. Rd1 {[%emt 0:04:00]} h5 {[%emt 0:05:10]} 21. Ne2 {[%emt 0:05:37]} Ne4 {[%emt 0:03:25]} 22. Nd4 {[%emt 0:07:41]} Qf6 {[%emt 0:06:26]} 23. Qe3 {[%emt 0:03:50]} c5 {[%emt 0:04:45]} 24. Nf3 {[%emt 0:02:00]} Nc3 {[%emt 0:02:04]} 25. Qd2 {[%emt 0:03:13]} Nxd1 {[%emt 0:00:06]} 26. Qxd1 {[%emt 0:00:24]} Qe6 {[%emt 0:00:22]} 27. Qc1 {[%emt 0:01:17]} g6 {[%emt 0:01:56]} 28. Qh6 {[%emt 0:01:57]} a5 {[%emt 0:00:59]} 29. Ng5 {[%emt 0:01:32]} Qe1+ {[%emt 0:00:26]} 30. Kh2 {[%emt 0:00:14]} Qe5+ {[%emt 0:00:02]} 31. Kg1 {[%emt 0:01:33]} Qa1+ {[%emt 0:00:02]} 32. Kh2 {[%emt 0:00:23]} Qg7 {[%emt 0:00:03]} 33. Qxg7+ {[%emt 0:01:40]} Kxg7 {[%emt 0:00:40]} 0-1

[Event "Baden Youth-ch 2020"]
[Site "Karlsruhe-Durlach"]
[Date "2020.01.02"]
[Round "1.9"]
[White "Wagner, Lena"]
[Black "Ehmann, Johanna"]
[Result "0-1"]
[ECO "D00"]
[WhiteElo "1289"]
[BlackElo "1846"]
[Annotator "NA"]
[PlyCount "90"]
[EventDate "2020.01.02"]
[EventType "swiss"]
[EventCountry "GER"]
[SourceTitle "playchess.com"]
[Source "ChessBase"]
[SourceQuality "1"]
[TimeControl "5400+30"]

1. d4 {[%emt 0:00:00]} d5 {[%emt 0:00:00]} 2. Nf3 {[%emt 0:00:00]} e6 {[%emt 0:00:04]} 3. Nc3 {[%emt 0:00:22]} Nf6 {[%emt 0:00:19]} 4. g3 {[%emt 0:00:33]} Nc6 {[%emt 0:03:49]} 5. Bg2 {[%emt 0:01:16]} a6 {[%emt 0:01:13]} 6. O-O {[%emt 0:01:19]} Be7 {[%emt 0:02:22]} 7. Bf4 {[%emt 0:02:34]} O-O {[%emt 0:02:09]} 8. a3 {[%emt 0:04:16]} b5 {[%emt 0:05:26]} 9. b4 {[%emt 0:04:15]} Rb8 {[%emt 0:02:54]} 10. Rb1 {[%emt 0:03:12]} Ne4 {[%emt 0:08:56]} 11. Nxe4 {[%emt 0:04:47]} dxe4 {[%emt 0:01:10]} 12. Ne5 {[%emt 0:01:37]} Nxe5 {[%emt 0:02:05]} 13. dxe5 {[%emt 0:03:42]} Bb7 {[%emt 0:01:49]} 14. Qc1 {[%emt 0:04:12]} c5 {[%emt 0:05:17]} 15. c4 {[%emt 0:03:34]} bxc4 {[%emt 0:05:18]} 16. Qxc4 {[%emt 0:02:19]} Bd5 {[%emt 0:03:31]} 17. Qxa6 {[%emt 0:07:06]} Ra8 {[%emt 0:02:38]} 18. Qb5 {[%emt 0:01:50]} Qc7 {[%emt 0:01:51]} 19. e3 {[%emt 0:05:02]} c4 {[%emt 0:01:26]} 20. Rfd1 {[%emt 0:04:44]} Rfb8 {[%emt 0:03:07]} 21. Qxb8+ {[%emt 0:01:15]} Rxb8 {[%emt 0:02:54]} 22. Rd4 {[%emt 0:01:44]} Qc6 {[%emt 0:03:08]} 23. Rc1 {[%emt 0:03:21]} c3 {[%emt 0:02:15]} 24. Bf1 {[%emt 0:04:59]} c2 {[%emt 0:05:51]} 25. Kg2 {[%emt 0:01:52]} Qc3 {[%emt 0:01:38]} 26. Be2 {[%emt 0:03:21]} Qb2 {[%emt 0:00:40]} 27. Re1 {[%emt 0:00:48]} c1=Q {[%emt 0:00:52]} 28. Rxc1 {[%emt 0:00:07]} Qxc1 {[%emt 0:00:09]} 29. h4 {[%emt 0:01:10]} h6 {[%emt 0:00:18]} 30. a4 {[%emt 0:02:10]} Rxb4 {[%emt 0:00:26]} 31. Rxb4 {[%emt 0:00:33]} Bxb4 {[%emt 0:00:07]} 32. a5 {[%emt 0:00:10]} Bxa5 {[%emt 0:00:13]} 33. g4 {[%emt 0:00:36]} Qc2 {[%emt 0:00:18]} 34. Kf1 {[%emt 0:01:14]} Bc4 {[%emt 0:00:23]} 35. Bxc4 {[%emt 0:00:49]} Qxc4+ {[%emt 0:00:06]} 36. Kg2 {[%emt 0:00:08]} Qe2 {[%emt 0:00:10]} 37. g5 {[%emt 0:01:10]} hxg5 {[%emt 0:00:20]} 38. hxg5 {[%emt 0:00:08]} Qf3+ {[%emt 0:00:50]} 39. Kg1 {[%emt 0:00:14]} Kh7 {[%emt 0:00:14]} 40. Bg3 {[%emt 0:01:21]} Kg6 {[%emt 0:00:18]} 41. Bf4 {[%emt 0:01:02]} Kh5 {[%emt 0:00:10]} 42. g6 {[%emt 0:01:39]} fxg6 {[%emt 0:00:17]} 43. Kf1 {[%emt 0:00:16]} Kg4 {[%emt 0:00:14]} 44. Bh2 {[%emt 0:01:32]} Kh3 {[%emt 0:00:07]} 45. Bg3 {[%emt 0:00:26]} Qd1# {[%emt 0:00:06]} 0-1

[Event "Baden Youth-ch 2020"]
[Site "Karlsruhe-Durlach"]
[Date "2020.01.02"]
[Round "1.10"]
[White "Schneider, Xenia"]
[Black "Grining, Maria"]
[Result "1-0"]
[ECO "B15"]
[WhiteElo "1332"]
[BlackElo "1744"]
[Annotator "NA"]
[PlyCount "35"]
[EventDate "2020.01.02"]
[EventType "swiss"]
[EventCountry "GER"]
[SourceTitle "playchess.com"]
[Source "ChessBase"]
[SourceQuality "1"]
[TimeControl "5400+30"]

1. e4 {[%emt 0:00:00]} c6 {[%emt 0:00:00]} 2. d4 {[%emt 0:00:00]} d5 {[%emt 0:00:00]} 3. Nc3 {[%emt 0:00:00]} dxe4 {[%emt 0:00:00]} 4. Nxe4 {[%emt 0:00:00]} Nf6 {[%emt 0:00:00]} 5. Nxf6+ {[%emt 0:00:11]} exf6 {[%emt 0:00:00]} 6. Bc4 {[%emt 0:00:32]} Bd6 {[%emt 0:03:40]} 7. Qh5 {[%emt 0:21:35]} Qe7+ {[%emt 0:05:43]} 8. Ne2 {[%emt 0:00:26]} O-O {[%emt 0:06:13]} 9. Bd3 {[%emt 0:01:43]} g6 {[%emt 0:00:21]} 10. Qh4 {[%emt 0:01:14]} Be6 {[%emt 0:04:03]} 11. Bh6 {[%emt 0:13:13]} Re8 {[%emt 0:00:28]} 12. O-O {[%emt 0:01:22]} c5 {[%emt 0:08:12]} 13. c3 {[%emt 0:06:46]} Nc6 {[%emt 0:08:47]} 14. f4 {[%emt 0:08:56]} f5 {[%emt 0:07:22]} 15. Bg5 {[%emt 0:00:49]} Qd7 {[%emt 0:01:43]} 16. Rf3 {[%emt 0:04:17]} cxd4 {[%emt 0:09:40]} 17. Bf6 {[%emt 0:04:22]} Be7 {[%emt 0:03:22]} 18. Qxh7+ {[%emt 0:00:15]} 1-0

[Event "Baden Youth-ch 2020"]
[Site "Karlsruhe-Durlach"]
[Date "2020.01.03"]
[Round "2.3"]
[White "Schulz, Hannah"]
[Black "Schneider, Anna"]
[Result "0-1"]
[ECO "D32"]
[WhiteElo "1588"]
[BlackElo "1758"]
[Annotator "NA RC"]
[PlyCount "58"]
[EventDate "2020.01.02"]
[EventType "swiss"]
[EventCountry "GER"]
[SourceTitle "playchess.com"]
[Source "ChessBase"]
[SourceQuality "1"]
[TimeControl "5400+30"]

1. d4 {[%emt 0:00:00]} d5 {[%emt 0:00:00]} 2. c4 {[%emt 0:00:00]} e6 {[%emt 0:00:00]} 3. Nc3 {[%emt 0:00:00]} c5 {[%emt 0:00:00]} 4. cxd5 {[%emt 0:00:00]} cxd4 {[%emt 0:00:11]} 5. Qa4+ {[%emt 0:00:00]} Qd7 {[%emt 0:02:09]} 6. dxe6 {[%emt 0:02:33]} Qxa4 {[%emt 0:00:49]} 7. exf7+ {[%emt 0:00:06]} Kxf7 {[%emt 0:00:31]} 8. Nxa4 {[%emt 0:00:04]} b5 {[%emt 0:00:29]} 9. Nc3 {[%emt 0:00:32]} dxc3 {[%emt 0:00:21]} 10. bxc3 {[%emt 0:00:05]} Nf6 {[%emt 0:01:03]} 11. e3 {[%emt 0:00:30]} a6 {[%emt 0:02:01]} 12. Nf3 {[%emt 0:00:42]} Nc6 {[%emt 0:02:34]} 13. Nd4 {[%emt 0:00:18]} Bd7 {[%emt 0:05:08]} 14. Bd3 {[%emt 0:03:31]} Bc5 {[%emt 0:05:18]} 15. a3 {[%emt 0:03:12]} Rhe8 {[%emt 0:08:26]} 16. O-O {[%emt 0:01:36]} Kg8 {[%emt 0:00:49]} 17. Nxc6 {[%emt 1:25:21]} Bxc6 {[%emt 0:00:08]} 18. c4 {[%emt 0:00:00]} b4 {[%emt 0:02:13]} 19. axb4 {[%emt 0:00:00]} Bxb4 {[%emt 0:00:14]} 20. Ba3 {[%emt 0:00:00]} a5 {[%emt 0:01:15]} 21. Rfb1 {[%emt 0:00:00]} Rab8 {[%emt 0:02:32]} 22. h3 {[%emt 0:02:30]} Ne4 {[%emt 1:04:49]} 23. Bxb4 {[%emt 0:00:00]} axb4 {[%emt 0:00:00]} 24. Bxe4 {[%emt 0:01:00]} Bxe4 {[%emt 0:00:00]} 25. Rb2 {[%emt 0:00:00]} b3 {[%emt 0:00:00]} 26. Kf1 {[%emt 0:00:00]} Bd3+ {[%emt 0:00:00]} 27. Ke1 {[%emt 0:00:00]} Bxc4 {[%emt 0:00:00]} 28. Kd2 {[%emt 0:00:00]} Red8+ {[%emt 0:00:00]} 29. Kc3 {[%emt 0:00:00]} Bd3 {[%emt 0:00:00]} 0-1

[Event "Baden Youth-ch 2020"]
[Site "Karlsruhe-Durlach"]
[Date "2020.01.03"]
[Round "2.5"]
[White "Schmitt, Daniel"]
[Black "Wu, Luka"]
[Result "1/2-1/2"]
[ECO "B38"]
[WhiteElo "1930"]
[BlackElo "2057"]
[Annotator "NA RC"]
[PlyCount "67"]
[EventDate "2020.01.02"]
[EventType "swiss"]
[EventCountry "GER"]
[SourceTitle "playchess.com"]
[Source "ChessBase"]
[SourceQuality "1"]
[TimeControl "5400+30"]

1. e4 {[%emt 0:00:00]} c5 {[%emt 0:00:00]} 2. Nf3 {[%emt 0:00:00]} d6 {[%emt 0:00:00]} 3. d4 {[%emt 0:00:00]} cxd4 {[%emt 0:00:00]} 4. Nxd4 {[%emt 0:00:00]} Nf6 {[%emt 0:00:00]} 5. f3 {[%emt 0:00:00]} g6 {[%emt 0:09:05]} 6. c4 {[%emt 0:00:11]} Bg7 {[%emt 0:00:14]} 7. Be3 {[%emt 0:00:42]} Nc6 {[%emt 0:01:42]} 8. Qd2 {[%emt 0:01:27]} O-O {[%emt 0:00:45]} 9. Nc3 {[%emt 0:01:59]} Bd7 {[%emt 0:00:27]} 10. Be2 {[%emt 0:07:09]} Qa5 {[%emt 0:02:57]} 11. O-O {[%emt 0:02:33]} Rfc8 {[%emt 0:01:10]} 12. Rac1 {[%emt 0:02:59]} a6 {[%emt 0:06:08]} 13. Rfd1 {[%emt 0:12:08]} Rab8 {[%emt 0:01:09] B38: Sicilian: Maroczy Bind with 5...Bg7 and 7...0-0} 14. Nd5 $2 $146 {[%emt 0:15:47]} ({Predecessor:} 14. Nb3 $14 {keeps the upper hand.} Qb4 (14... Qh5 15. Nd5 Nxd5 16. cxd5 Ne5 17. Nd4 f5 18. f4 Ng4 19. h3 fxe4 20. Ne6 Bxe6 21. dxe6 {1-0 (21) Matlak,M (2475)-Nurkiewicz,M (2387) Lubniewice 2005}) 15. c5) 14... Qxd2 {[%emt 0:04:19]} 15. Rxd2 {[%emt 0:00:08]} Nxd5 {[%emt 0:01:46]} 16. exd5 {[%emt 0:03:50]} Nxd4 {[%emt 0:00:27]} 17. Bxd4 {[%emt 0:00:06]} Bh6 {[%emt 0:00:19]} 18. Rcd1 {[%emt 0:02:37]} Bxd2 {[%emt 0:00:20]} 19. Rxd2 {[%emt 0:00:02]} b5 {[%emt 0:00:47]} 20. cxb5 {[%emt 0:01:43]} Bxb5 {[%emt 0:00:13]} 21. Kf2 {[%emt 0:01:28]} e6 {[%emt 0:05:03]} 22. dxe6 {[%emt 0:01:45]} fxe6 {[%emt 0:00:08]} 23. Bc3 {[%emt 0:02:04]} Bxe2 {[%emt 0:00:40]} 24. Kxe2 {[%emt 0:00:17]} Rd8 {[%emt 0:00:42]} 25. f4 {[%emt 0:00:49]} Kf7 {[%emt 0:00:10]} 26. Rd4 {[%emt 0:02:25]} Rbc8 {[%emt 0:01:42]} 27. Rb4 {[%emt 0:01:01]} Rd7 {[%emt 0:01:49]} 28. Rb6 {[%emt 0:01:07]} Ra8 {[%emt 0:00:06]} 29. Ke3 {[%emt 0:01:41]} d5 {[%emt 0:13:01]} 30. a4 {[%emt 0:05:44]} Rad8 {[%emt 0:13:47]} 31. Bd4 {[%emt 0:15:35]} Rd6 $11 {[%emt 0:11:34]} (31... a5 $17 32. Ra6 Rg8 33. Rxa5 g5) 32. Rb7+ $1 {[%emt 0:00:40]} R8d7 {[%emt 0:00:12]} 33. Rb8 {[%emt 0:00:20]} Rd8 {[%emt 0:09:49]} 34. Rb7+ {[%emt 0:00:09]} 1/2-1/2

[Event "Baden Youth-ch 2020"]
[Site "Karlsruhe-Durlach"]
[Date "2020.01.03"]
[Round "2.6"]
[White "Basovskiy, Jana"]
[Black "Schneider, Katharina"]
[Result "0-1"]
[ECO "C54"]
[WhiteElo "1791"]
[BlackElo "1672"]
[Annotator "NA RC"]
[PlyCount "62"]
[EventDate "2020.01.02"]
[EventType "swiss"]
[EventCountry "GER"]
[SourceTitle "playchess.com"]
[Source "ChessBase"]
[SourceQuality "1"]
[TimeControl "5400+30"]

1. e4 {[%emt 0:00:00]} e5 {[%emt 0:00:00]} 2. Nf3 {[%emt 0:00:00]} Nc6 {[%emt 0:00:00]} 3. Bc4 {[%emt 0:00:00]} Bc5 {[%emt 0:00:00]} 4. c3 {[%emt 0:00:00]} Nf6 {[%emt 0:00:00]} 5. d3 {[%emt 0:00:00]} a6 {[%emt 0:00:06]} 6. Nbd2 {[%emt 0:00:11]} Ba7 {[%emt 0:00:26]} 7. O-O {[%emt 0:01:05]} d6 {[%emt 0:00:29]} 8. Bb3 {[%emt 0:00:06]} h6 {[%emt 0:02:11]} 9. h3 {[%emt 0:13:05]} g5 {[%emt 0:01:48]} 10. Nc4 {[%emt 0:06:43]} g4 {[%emt 0:06:57]} 11. hxg4 {[%emt 0:02:26]} Bxg4 {[%emt 0:00:29]} 12. Ne3 {[%emt 0:01:06]} Rg8 {[%emt 0:22:07]} 13. Nxg4 {[%emt 0:16:56]} Nxg4 {[%emt 0:00:21]} 14. Qe2 {[%emt 0:01:01]} Qf6 {[%emt 0:15:26]} 15. Be3 {[%emt 0:22:19]} O-O-O {[%emt 0:03:46]} 16. Bxa7 {[%emt 0:00:39]} Nxa7 {[%emt 0:00:17]} 17. Nh2 {[%emt 0:06:16]} h5 {[%emt 0:04:13]} 18. Qf3 {[%emt 0:02:15]} Qh4 {[%emt 0:05:19]} 19. Nxg4 {[%emt 0:03:29]} hxg4 {[%emt 0:00:03]} 20. Qg3 {[%emt 0:00:09]} Qh5 {[%emt 0:03:05]} 21. f3 {[%emt 0:03:27]} Rdf8 {[%emt 0:02:54]} 22. f4 {[%emt 0:04:48]} Nc6 {[%emt 0:03:49]} 23. Bd1 {[%emt 0:04:22]} f5 {[%emt 0:03:17]} 24. Bb3 {[%emt 0:04:55]} Rg6 {[%emt 0:03:41]} 25. fxe5 {[%emt 0:00:00]} Nxe5 {[%emt 0:00:35]} 26. Rxf5 {[%emt 0:03:24]} Rxf5 {[%emt 0:00:30]} 27. exf5 {[%emt 0:00:04]} Qxf5 {[%emt 0:00:18]} 28. Bd1 {[%emt 0:01:17]} Nf3+ {[%emt 0:05:17]} 29. Kf2 {[%emt 0:00:06]} Nh2+ {[%emt 0:00:54]} 30. Ke2 {[%emt 0:00:32]} Re6+ {[%emt 0:00:08]} 31. Kd2 {[%emt 0:00:08]} Nf1+ {[%emt 0:17:04]} 0-1

[Event "Baden Youth-ch 2020"]
[Site "Karlsruhe-Durlach"]
[Date "2020.01.03"]
[Round "2.9"]
[White "Schneider, Xenia"]
[Black "Wagner, Lena"]
[Result "1-0"]
[ECO "B18"]
[WhiteElo "1332"]
[BlackElo "1289"]
[Annotator "NA RC"]
[PlyCount "45"]
[EventDate "2020.01.02"]
[EventType "swiss"]
[EventCountry "GER"]
[SourceTitle "playchess.com"]
[Source "ChessBase"]
[SourceQuality "1"]
[TimeControl "5400+30"]

1. e4 {[%emt 0:00:00]} c6 {[%emt 0:00:00]} 2. d4 {[%emt 0:00:00]} d5 {[%emt 0:00:00]} 3. Nc3 {[%emt 0:00:00]} dxe4 {[%emt 0:00:02]} 4. Nxe4 {[%emt 0:00:00]} Bf5 {[%emt 0:00:17]} 5. Ng3 {[%emt 0:00:02]} Bg6 {[%emt 0:00:50]} 6. h4 {[%emt 0:00:36]} Nf6 {[%emt 0:00:59]} 7. Nf3 {[%emt 0:17:48]} e6 {[%emt 0:02:35]} 8. h5 {[%emt 0:02:34]} Be4 {[%emt 0:02:43]} 9. Ng5 {[%emt 0:20:11]} Bd5 {[%emt 0:04:18]} 10. c4 {[%emt 0:04:21]} c5 {[%emt 0:04:12]} 11. cxd5 {[%emt 0:00:18]} Nxd5 {[%emt 0:01:13]} 12. Bb5+ {[%emt 0:02:06]} Nc6 {[%emt 0:01:57]} 13. O-O {[%emt 0:03:36]} Be7 {[%emt 0:02:47]} 14. N3e4 {[%emt 0:02:47]} Bxg5 {[%emt 0:03:49]} 15. Bxg5 {[%emt 0:00:14]} Qb6 {[%emt 0:00:23]} 16. dxc5 {[%emt 0:01:30]} Qa5 {[%emt 0:03:04]} 17. Nd6+ {[%emt 0:04:11]} Kf8 {[%emt 0:02:09]} 18. h6 {[%emt 0:01:05]} gxh6 {[%emt 0:01:25]} 19. Bxh6+ {[%emt 0:01:48]} Ke7 {[%emt 0:00:23]} 20. Qh5 {[%emt 0:02:15]} Nd8 {[%emt 0:01:53]} 21. Rfe1 {[%emt 0:01:19]} a6 {[%emt 0:01:10]} 22. Nf5+ {[%emt 0:00:19]} Kf6 {[%emt 0:00:31]} 23. Qg5# {[%emt 0:00:08]} 1-0